fUSD/lending_fUSD_20250427
["ID","MTS","AMOUNT","RATE_DAILY","PERIOD"]
[359117186,1745715039212,-480.83,0.00019694,2]
[359117188,1745715039221,-615.41,0.00019694,2]
[359117189,1745715039230,-400.0,0.00019694,2]
[359117191,1745715039239,-200.0,0.00019694,2]
[359117193,1745715039249,-521.06,0.00019694,2]
[359117195,1745715039258,-200.0,0.00019694,2]
[359117197,1745715039268,-400.0,0.00019694,2]
[359117222,1745715039483,-400.0,0.00019694,2]
[359117224,1745715039494,-400.0,0.00019694,2]
[359117226,1745715039503,-400.0,0.00019694,2]
[359117228,1745715039513,-312.01681032,0.00019694,2]
[359117230,1745715039523,-400.0,0.00019694,2]
[359117232,1745715039533,-400.0,0.00019694,2]
[359117234,1745715039543,-400.0,0.00019694,2]
[359117236,1745715039552,-400.0,0.00019694,2]
[359117238,1745715039562,-730.04,0.00019694,2]
[359117240,1745715039571,-401.74,0.00019694,2]
[359117242,1745715039582,-400.0,0.00019694,2]
[359117244,1745715039592,-432.2,0.00019694,2]
[359117246,1745715039601,-400.0,0.00019694,2]
[359117248,1745715039612,-400.0,0.00019694,2]
[359117250,1745715039621,-400.0,0.00019694,2]
[359117252,1745715039630,-400.0,0.00019694,2]
[359117254,1745715039639,-671.96,0.00019694,2]
[359117256,1745715039648,-624.57,0.00019694,2]
[359117258,1745715039658,-400.0,0.00019694,2]
[359117260,1745715039668,-400.0,0.00019694,2]
[359117262,1745715039678,-400.0,0.00019694,2]
[359117264,1745715039688,-488.67,0.00019694,2]
[359117266,1745715039698,-400.0,0.00019694,2]
[359117268,1745715039707,-400.0,0.00019694,2]
[359117270,1745715039716,-642.67,0.00019694,2]
[359117272,1745715039727,-200.0,0.00019694,2]
[359117274,1745715039737,-400.0,0.00019694,2]
[359117276,1745715039747,-400.0,0.00019694,2]
[359117277,1745715039757,-400.0,0.00019694,2]
[359117279,1745715039767,-400.0,0.00019694,2]
[359117281,1745715039776,-369.80191009,0.00019694,2]
[359117283,1745715039786,-400.0,0.00019694,2]
[359117285,1745715039795,-585.48,0.00019694,2]
[359117287,1745715039804,-400.0,0.00019694,2]
[359117289,1745715039814,-2007.17,0.00019694,2]
[359117291,1745715039823,-400.0,0.00019694,2]
[359117293,1745715039833,-431.82,0.00019694,2]
[359117295,1745715039843,-1723.32,0.00019694,2]
[359117297,1745715039852,-400.0,0.00019694,2]
[359117299,1745715039862,-400.0,0.00019694,2]
[359117301,1745715039871,-481.82,0.00019694,2]
[359117303,1745715039881,-400.0,0.00019694,2]
[359117305,1745715039890,-500.0,0.00019694,2]
[359117307,1745715039899,-400.0,0.00019694,2]
[359117309,1745715039910,-400.0,0.00019694,2]
[359117311,1745715039920,-400.0,0.00019694,2]
[359117312,1745715039929,-400.0,0.00019694,2]
[359117313,1745715039939,-400.0,0.00019694,2]
[359117314,1745715039948,-751.36,0.00019694,2]
[359117315,1745715039957,-622.91,0.00019694,2]
[359117316,1745715039967,-484.51,0.00019694,2]
[359117317,1745715039976,-400.0,0.00019694,2]
[359117318,1745715039985,-400.0,0.00019694,2]
[359117319,1745715039995,-400.0,0.00019694,2]
[359117320,1745715040004,-400.0,0.00019694,2]
[359117321,1745715040015,-400.0,0.00019694,2]
[359117322,1745715040026,-400.0,0.00019694,2]
[359117323,1745715040038,-400.0,0.00019694,2]
[359117324,1745715040048,-264.85362062,0.00019694,2]
[359117325,1745715040058,-400.0,0.00019694,2]
[359117326,1745715040067,-752.0,0.00019694,2]
[359117327,1745715040077,-400.0,0.00019694,2]
[359117328,1745715040086,-400.0,0.00019694,2]
[359117329,1745715040096,-400.0,0.00019694,2]
[359117331,1745715040105,-478.79,0.00019694,2]
[359117333,1745715040115,-442.93,0.00019694,2]
[359117335,1745715040125,-400.0,0.00019694,2]
[359117337,1745715040134,-400.0,0.00019694,2]
[359117339,1745715040144,-400.0,0.00019694,2]
[359117341,1745715040156,-443.48,0.00019694,2]
[359117343,1745715040166,-4431.14,0.00019694,2]
[359117345,1745715040175,-400.0,0.00019694,2]
[359117347,1745715040186,-400.0,0.00019694,2]
[359117349,1745715040195,-499.94,0.00019694,2]
[359117351,1745715040205,-400.0,0.00019694,2]
[359117353,1745715040214,-3262.47,0.00019694,2]
[359117355,1745715040224,-786.76,0.00019694,2]
[359117357,1745715040234,-400.0,0.00019694,2]
[359117359,1745715040243,-488.51,0.00019694,2]
[359117361,1745715040252,-400.0,0.00019694,2]
[359117363,1745715040261,-66100.12,0.00019694,2]
[359117365,1745715040270,-521.72,0.00019694,2]
[359117367,1745715040279,-400.0,0.00019694,2]
[359117369,1745715040288,-400.0,0.00019694,2]
[359117371,1745715040297,-400.0,0.00019694,2]
[359117373,1745715040306,-621.3,0.00019694,2]
[359117375,1745715040316,-600.33,0.00019694,2]
[359117377,1745715040325,-400.0,0.00019694,2]
[359117378,1745715040335,-400.0,0.00019694,2]
[359117380,1745715040344,-400.0,0.00019694,2]
[359117382,1745715040353,-400.0,0.00019694,2]
[359117384,1745715040363,-300.000001,0.00019694,2]
[359117386,1745715040372,-492.94,0.00019694,2]
[359117388,1745715040381,-555.66,0.00019694,2]
[359117390,1745715040390,-400.0,0.00019694,2]
[359117392,1745715040401,-473.79,0.00019694,2]
[359117394,1745715040411,-8222.93,0.00019694,2]
[359117396,1745715040421,-400.0,0.00019694,2]
[359117398,1745715040430,-400.0,0.00019694,2]
[359117400,1745715040440,-400.0,0.00019694,2]
[359117402,1745715040450,-530.55,0.00019694,2]
[359117404,1745715040460,-468.18,0.00019694,2]
[359117406,1745715040469,-3763.97,0.00019694,2]
[359117408,1745715040478,-400.0,0.00019694,2]
[359117410,1745715040488,-400.0,0.00019694,2]
[359117412,1745715040497,-400.0,0.00019694,2]
[359117413,1745715040506,-400.0,0.00019694,2]
[359117415,1745715040516,-400.0,0.00019694,2]
[359117417,1745715040525,-400.0,0.00019694,2]
[359117419,1745715040536,-1559.59,0.00019694,2]
[359117421,1745715040545,-400.0,0.00019694,2]
[359117423,1745715040554,-400.0,0.00019694,2]
[359117425,1745715040563,-527.73,0.00019695,2]
[359117427,1745715040573,-400.0,0.00019695,2]
[359117429,1745715040583,-400.0,0.00019695,2]
[359117431,1745715040592,-400.0,0.00019695,2]
[359117433,1745715040601,-532.41,0.00019695,2]
[359117435,1745715040611,-400.0,0.00019695,2]
[359117437,1745715040620,-449.0,0.00019695,2]
[359117439,1745715040629,-400.0,0.00019695,2]
[359117441,1745715040638,-400.0,0.00019695,2]
[359117443,1745715040648,-400.0,0.00019695,2]
[359117445,1745715040658,-441.39,0.00019695,2]
[359117447,1745715040669,-400.0,0.00019695,2]
[359117449,1745715040679,-400.0,0.00019695,2]
[359117451,1745715040689,-400.0,0.00019695,2]
[359117453,1745715040698,-400.0,0.00019695,2]
[359117455,1745715040707,-400.0,0.00019695,2]
[359117457,1745715040716,-400.0,0.00019695,2]
[359117459,1745715040725,-500.0,0.00019695,2]
[359117461,1745715040735,-500.0,0.00019695,2]
[359117463,1745715040744,-400.0,0.00019695,2]
[359117465,1745715040754,-400.0,0.00019695,2]
[359117467,1745715040764,-400.0,0.00019695,2]
[359117469,1745715040773,-400.0,0.00019695,2]
[359117471,1745715040782,-543.88,0.00019695,2]
[359117473,1745715040791,-400.0,0.00019695,2]
[359117475,1745715040802,-400.0,0.00019695,2]
[359117477,1745715040811,-400.0,0.00019695,2]
[359117479,1745715040820,-400.0,0.00019695,2]
[359117481,1745715040828,-400.0,0.00019695,2]
[359117483,1745715040838,-400.0,0.00019695,2]
[359117485,1745715040848,-400.0,0.00019695,2]
[359117487,1745715040857,-400.0,0.00019695,2]
[359117489,1745715040866,-400.0,0.00019695,2]
[359117491,1745715040875,-400.0,0.00019695,2]
[359117493,1745715040886,-400.0,0.00019695,2]
[359117495,1745715040895,-400.0,0.00019695,2]
[359117497,1745715040905,-400.0,0.00019695,2]
[359117499,1745715040915,-163.44270444,0.00019695,2]
[359117501,1745715040925,-519.21,0.00019695,2]
[359117503,1745715040936,-400.0,0.00019695,2]
[359117505,1745715040945,-400.0,0.00019695,2]
[359117506,1745715040955,-400.0,0.00019695,2]
[359117508,1745715040964,-571.02,0.00019695,2]
[359117510,1745715040974,-400.0,0.00019695,2]
[359117512,1745715040984,-400.0,0.00019695,2]
[359117514,1745715040993,-400.0,0.00019695,2]
[359117516,1745715041003,-400.0,0.00019695,2]
[359117518,1745715041012,-400.0,0.00019695,2]
[359117520,1745715041022,-400.0,0.00019695,2]
[359117522,1745715041032,-400.0,0.00019695,2]
[359117524,1745715041042,-400.0,0.00019695,2]
[359117526,1745715041051,-400.0,0.00019695,2]
[359117528,1745715041061,-400.0,0.00019695,2]
[359117530,1745715041070,-400.0,0.00019695,2]
[359117531,1745715041079,-400.0,0.00019695,2]
[359117533,1745715041089,-615.27,0.00019695,2]
[359117535,1745715041098,-400.0,0.00019695,2]
[359117537,1745715041107,-400.0,0.00019695,2]
[359117539,1745715041116,-400.0,0.00019695,2]
[359117541,1745715041125,-400.0,0.00019695,2]
[359117543,1745715041134,-400.0,0.00019695,2]
[359117545,1745715041143,-400.0,0.00019695,2]
[359117547,1745715041153,-400.0,0.00019695,2]
[359117549,1745715041163,-400.0,0.00019695,2]
[359117551,1745715041172,-400.0,0.00019695,2]
[359117553,1745715041183,-400.0,0.00019695,2]
[359117555,1745715041193,-400.0,0.00019695,2]
[359117557,1745715041202,-422.13,0.00019695,2]
[359117559,1745715041211,-400.0,0.00019695,2]
[359117561,1745715041220,-985.05,0.00019695,2]
[359117563,1745715041229,-400.0,0.00019695,2]
[359117564,1745715041239,-400.0,0.00019695,2]
[359117567,1745715041249,-458.03127712,0.00019695,2]
[359117568,1745715041257,-400.0,0.00019695,2]
[359117570,1745715041267,-461.74,0.00019695,2]
[359117572,1745715041276,-400.0,0.00019695,2]
[359117574,1745715041285,-400.0,0.00019695,2]
[359117576,1745715041295,-686.1,0.00019695,2]
[359117578,1745715041304,-1142.06,0.00019695,2]
[359117580,1745715041313,-400.0,0.00019695,2]
[359117582,1745715041323,-400.0,0.00019695,2]
[359117584,1745715041332,-404.71,0.00019695,2]
[359117586,1745715041341,-400.0,0.00019695,2]
[359117588,1745715041352,-400.0,0.00019695,2]
[359117590,1745715041361,-400.0,0.00019695,2]
[359117592,1745715041371,-400.0,0.00019695,2]
[359117594,1745715041381,-400.0,0.00019695,2]
[359117596,1745715041390,-400.0,0.00019695,2]
[359117598,1745715041402,-400.0,0.00019695,2]
[359117600,1745715041413,-559.32,0.00019695,2]
[359117602,1745715041422,-400.0,0.00019695,2]
[359117604,1745715041432,-400.0,0.00019695,2]
[359117606,1745715041443,-400.0,0.00019695,2]
[359117608,1745715041453,-1280.72,0.00019695,2]
[359117610,1745715041462,-400.0,0.00019695,2]
[359117612,1745715041471,-400.0,0.00019695,2]
[359117614,1745715041482,-500.0,0.00019695,2]
[359117616,1745715041493,-400.0,0.00019695,2]
[359117618,1745715041502,-347.20069486,0.00019695,2]
[359117620,1745715041512,-400.0,0.00019695,2]
[359117622,1745715041521,-438.71,0.00019695,2]
[359117624,1745715041532,-400.0,0.00019695,2]
[359117626,1745715041542,-400.0,0.00019695,2]
[359117628,1745715041551,-400.0,0.00019695,2]
[359117630,1745715041561,-400.0,0.00019695,2]
[359117632,1745715041571,-400.0,0.00019695,2]
[359117634,1745715041580,-505.27,0.00019695,2]
[359117636,1745715041589,-400.0,0.00019695,2]
[359117638,1745715041599,-400.0,0.00019695,2]
[359117640,1745715041609,-503.01,0.00019695,2]
[359117642,1745715041618,-400.0,0.00019695,2]
[359117644,1745715041628,-400.0,0.00019695,2]
[359117646,1745715041637,-345.38205614,0.00019695,2]
[359117648,1745715041647,-400.0,0.00019695,2]
[359117650,1745715041657,-636.75,0.00019695,2]
[359117652,1745715041667,-500.0,0.00019695,2]
[359117654,1745715041677,-400.0,0.00019695,2]
[359117656,1745715041687,-400.0,0.00019695,2]
[359117658,1745715041696,-400.0,0.00019695,2]
[359117660,1745715041706,-500.0,0.00019695,2]
[359117662,1745715041717,-400.0,0.00019695,2]
[359117664,1745715041727,-429.79,0.00019695,2]
[359117666,1745715041737,-400.0,0.00019695,2]
[359117668,1745715041747,-400.0,0.00019695,2]
[359117670,1745715041756,-400.0,0.00019695,2]
[359117672,1745715041766,-612.75,0.00019695,2]
[359117674,1745715041776,-400.0,0.00019695,2]
[359117676,1745715041785,-456.89,0.00019695,2]
[359117678,1745715041795,-400.0,0.00019695,2]
[359117680,1745715041805,-400.0,0.00019695,2]
[359117682,1745715041815,-400.0,0.00019695,2]
[359117684,1745715041826,-166.09735684,0.00019695,2]
[359117686,1745715041836,-400.0,0.00019695,2]
[359117688,1745715041846,-500.0,0.00019695,2]
[359117690,1745715041857,-494.64,0.00019695,2]
[359117692,1745715041867,-400.0,0.00019695,2]
[359117694,1745715041877,-464.87,0.00019695,2]
[359117696,1745715041886,-400.0,0.00019695,2]
[359117698,1745715041896,-500.0,0.00019695,2]
[359117700,1745715041905,-400.0,0.00019695,2]
[359117702,1745715041915,-400.0,0.00019695,2]
[359117704,1745715041924,-400.0,0.00019695,2]
[359117705,1745715041934,-157.05846554,0.00019695,2]
[359117707,1745715041944,-500.0,0.00019695,2]
[359117709,1745715041953,-436.92,0.00019695,2]
[359117711,1745715041962,-446.14,0.00019695,2]
[359117713,1745715041972,-463.57,0.00019695,2]
[359117715,1745715041982,-400.0,0.00019695,2]
[359117717,1745715041991,-400.0,0.00019695,2]
[359117719,1745715042000,-400.0,0.00019695,2]
[359117721,1745715042010,-500.0,0.00019695,2]
[359117723,1745715042019,-488.74,0.00019695,2]
[359117725,1745715042028,-554.1,0.00019695,2]
[359117727,1745715042037,-400.0,0.00019695,2]
[359117729,1745715042046,-400.0,0.00019695,2]
[359117731,1745715042056,-400.0,0.00019695,2]
[359117733,1745715042065,-400.0,0.00019695,2]
[359117735,1745715042074,-400.0,0.00019695,2]
[359117737,1745715042084,-500.0,0.00019695,2]
[359117739,1745715042094,-400.0,0.00019695,2]
[359117741,1745715042103,-275.11030669,0.00019695,2]
[359117743,1745715042113,-400.0,0.00019695,2]
[359117745,1745715042123,-400.0,0.00019695,2]
[359117747,1745715042132,-493.87,0.00019695,2]
[359117749,1745715042142,-400.0,0.00019695,2]
[359117751,1745715042151,-400.0,0.00019695,2]
[359117753,1745715042160,-400.0,0.00019695,2]
[359117755,1745715042172,-400.0,0.00019695,2]
[359117757,1745715042182,-400.0,0.00019695,2]
[359117759,1745715042191,-500.0,0.00019695,2]
[359117761,1745715042201,-400.0,0.00019695,2]
[359117763,1745715042211,-400.0,0.00019695,2]
[359117765,1745715042219,-535.42,0.00019695,2]
[359117767,1745715042229,-400.0,0.00019695,2]
[359117771,1745715042238,-400.0,0.00019695,2]
[359117774,1745715042247,-440.52,0.00019695,2]
[359117776,1745715042257,-568.04,0.00019695,2]
[359117779,1745715042267,-449.38,0.00019695,2]
[359117781,1745715042276,-400.0,0.00019695,2]
[359117783,1745715042285,-1300.45,0.00019695,2]
[359117785,1745715042295,-400.0,0.00019695,2]
[359117787,1745715042305,-400.0,0.00019695,2]
[359117789,1745715042314,-400.0,0.00019695,2]
[359117791,1745715042323,-400.0,0.00019695,2]
[359117793,1745715042332,-625.57,0.00019695,2]
[359117795,1745715042342,-400.0,0.00019695,2]
[359117797,1745715042351,-400.0,0.00019695,2]
[359117799,1745715042360,-672.56,0.00019695,2]
[359117800,1745715042370,-600.94,0.00019695,2]
[359117802,1745715042380,-400.0,0.00019695,2]
[359117804,1745715042390,-300.0,0.00019695,2]
[359117806,1745715042400,-400.0,0.00019695,2]
[359117808,1745715042411,-400.0,0.00019695,2]
[359117810,1745715042421,-400.0,0.00019695,2]
[359117812,1745715042430,-400.0,0.00019695,2]
[359117814,1745715042440,-400.0,0.00019695,2]
[359117816,1745715042450,-518.87,0.00019695,2]
[359117818,1745715042459,-400.0,0.00019695,2]
[359117820,1745715042469,-536.79,0.00019695,2]
[359117822,1745715042479,-400.0,0.00019695,2]
[359117824,1745715042489,-400.0,0.00019695,2]
[359117826,1745715042498,-400.0,0.00019695,2]
[359117829,1745715042507,-400.0,0.00019695,2]
[359117831,1745715042517,-400.0,0.00019695,2]
[359117833,1745715042526,-400.0,0.00019695,2]
[359117835,1745715042536,-400.0,0.00019695,2]
[359117837,1745715042545,-400.0,0.00019695,2]
[359117839,1745715042555,-400.0,0.00019695,2]
[359117841,1745715042565,-400.0,0.00019695,2]
[359117843,1745715042575,-400.0,0.00019695,2]
[359117845,1745715042584,-400.0,0.00019695,2]
[359117847,1745715042594,-500.0,0.00019695,2]
[359117849,1745715042604,-400.0,0.00019695,2]
[359117851,1745715042613,-500.0,0.00019695,2]
[359117853,1745715042623,-400.0,0.00019695,2]
[359117855,1745715042633,-400.0,0.00019695,2]
[359117857,1745715042644,-2914.85,0.00019695,2]
[359117859,1745715042654,-507.38,0.00019695,2]
[359117861,1745715042664,-400.0,0.00019695,2]
[359117863,1745715042675,-400.0,0.00019695,2]
[359117865,1745715042684,-400.0,0.00019695,2]
[359117867,1745715042694,-400.0,0.00019695,2]
[359117869,1745715042703,-400.0,0.00019695,2]
[359117871,1745715042713,-632.01,0.00019695,2]
[359117873,1745715042723,-397.22884551,0.00019695,2]
[359117875,1745715042733,-400.0,0.00019695,2]
[359117877,1745715042742,-507.07,0.00019695,2]
[359117879,1745715042752,-400.0,0.00019695,2]
[359117881,1745715042761,-400.0,0.00019695,2]
[359117883,1745715042771,-500.0,0.00019695,2]
[359117885,1745715042781,-556.97,0.00019695,2]
[359117887,1745715042790,-400.0,0.00019695,2]
[359117889,1745715042800,-622.6,0.00019695,2]
[359117891,1745715042810,-400.0,0.00019695,2]
[359117893,1745715042819,-400.0,0.00019695,2]
[359117895,1745715042828,-400.0,0.00019695,2]
[359117897,1745715042838,-468.34,0.00019695,2]
[359117899,1745715042848,-400.0,0.00019695,2]
[359117901,1745715042858,-410.45,0.00019695,2]
[359117903,1745715042868,-862.9,0.00019695,2]
[359117905,1745715042878,-806.24,0.00019695,2]
[359117907,1745715042887,-400.0,0.00019695,2]
[359117909,1745715042897,-400.0,0.00019695,2]
[359117911,1745715042907,-319.47076708,0.00019695,2]
[359117913,1745715042917,-400.0,0.00019695,2]
[359117915,1745715042926,-400.0,0.00019695,2]
[359117917,1745715042936,-380.18,0.00019695,2]
[359117919,1745715042945,-400.0,0.00019695,2]
[359117921,1745715042954,-500.0,0.00019695,2]
[359117923,1745715042964,-400.0,0.00019695,2]
[359117925,1745715042973,-540.86,0.00019695,2]
[359117927,1745715042983,-400.0,0.00019695,2]
[359117929,1745715042992,-400.0,0.00019695,2]
[359117931,1745715043002,-400.0,0.00019695,2]
[359117933,1745715043012,-564.98,0.00019695,2]
[359117935,1745715043022,-156.09998067,0.00019695,2]
[359117937,1745715043031,-563.07,0.00019695,2]
[359117940,1745715043041,-400.0,0.00019695,2]
[359117943,1745715043050,-570.5,0.00019695,2]
[359117946,1745715043060,-450.44,0.00019695,2]
[359117949,1745715043070,-165.25448104,0.00019695,2]
[359117951,1745715043079,-206.2795176,0.00019696,2]
[359117953,1745715043090,-400.0,0.00019696,2]
[359117955,1745715043100,-1674.63771916,0.00019697,2]
[359117957,1745715043110,-1622.53755652,0.00019697,2]
[359117959,1745715043119,-500.0,0.00019722,2]
[359117961,1745715043129,-500.0,0.00019722,2]
[359117963,1745715043139,-150.0,0.00019723,2]
[359117965,1745715043148,-150.0,0.00019724,2]
[359117967,1745715043158,-150.0,0.00019727,2]
[359117969,1745715043169,-150.0,0.0001973,2]
[359117971,1745715043178,-1674.63771916,0.00019731,2]
[359117973,1745715043188,-1622.53755652,0.00019731,2]
[359117975,1745715043197,-150.0,0.00019734,2]
[359117977,1745715043207,-150.0,0.0001974,2]
[359117979,1745715043217,-150.0,0.00019744,2]
[359117981,1745715043227,-160.95171233,0.00019748,2]
[359117983,1745715043237,-150.0,0.00019748,2]
[359117985,1745715043246,-500.0,0.0001975,2]
[359117987,1745715043256,-500.0,0.0001975,2]
[359117989,1745715043266,-150.0,0.00019753,2]
[359117991,1745715043276,-150.0,0.00019763,2]
[359117993,1745715043285,-150.0,0.00019763,2]
[359117995,1745715043294,-1674.63771916,0.00019764,2]
[359117997,1745715043304,-1622.53755652,0.00019764,2]
[359117999,1745715043315,-150.0,0.00019767,2]
[359118001,1745715043324,-150.0,0.00019774,2]
[359118003,1745715043334,-150.0,0.00019775,2]
[359118005,1745715043343,-500.0,0.00019777,2]
[359118007,1745715043353,-500.0,0.00019777,2]
[359118009,1745715043363,-150.0,0.00019779,2]
[359118011,1745715043373,-150.0,0.0001978,2]
[359118013,1745715043382,-150.0,0.00019785,2]
[359118015,1745715043392,-150.0,0.00019787,2]
[359118017,1745715043404,-150.0,0.00019788,2]
[359118019,1745715043414,-150.0,0.00019788,2]
[359118020,1745715043423,-150.0,0.00019791,2]
[359118022,1745715043432,-150.0,0.00019797,2]
[359118024,1745715043443,-1674.63771916,0.00019798,2]
[359118026,1745715043453,-1622.53755652,0.00019798,2]
[359118047,1745715043656,-500.0,0.00019805,2]
[359118049,1745715043668,-500.0,0.00019805,2]
[359118051,1745715043679,-150.0,0.00019807,2]
[359118053,1745715043688,-150.0,0.00019816,2]
[359118055,1745715043698,-150.0,0.00019823,2]
[359118057,1745715043707,-150.0,0.00019823,2]
[359118059,1745715043716,-160.95171233,0.00019824,2]
[359118061,1745715043725,-150.0,0.00019824,2]
[359118063,1745715043735,-500.0,0.00019832,2]
[359118065,1745715043745,-488.0,0.00019832,2]
[359118067,1745715043754,-1674.63771916,0.00019832,2]
[359118069,1745715043764,-1622.53755652,0.00019832,2]
[359118071,1745715043774,-150.0,0.00019835,2]
[359118073,1745715043783,-1000.0,0.00019837,2]
[359118075,1745715043792,-150.0,0.00019841,2]
[359118077,1745715043802,-151.0,0.00019843,2]
[359118079,1745715043811,-151.0,0.00019844,2]
[359118081,1745715043821,-151.0,0.00019846,2]
[359118083,1745715043832,-151.0,0.00019846,2]
[359118085,1745715043841,-151.0,0.00019847,2]
[359118087,1745715043851,-150.0,0.00019847,2]
[359118089,1745715043860,-151.0,0.00019847,2]
[359118091,1745715043870,-151.0,0.00019848,2]
[359118093,1745715043879,-150.0,0.00019848,2]
[359118095,1745715043888,-150.0,0.00019848,2]
[359118097,1745715043899,-151.0,0.00019848,2]
[359118099,1745715043908,-150.0,0.00019851,2]
[359118101,1745715043919,-150.0,0.00019854,2]
[359118103,1745715043929,-150.0,0.00019856,2]
[359118104,1745715043939,-150.0,0.00019857,2]
[359118105,1745715043948,-500.0,0.00019859,2]
[359118106,1745715043957,-150.0,0.0001986,2]
[359118107,1745715043967,-150.0,0.0001986,2]
[359118108,1745715043976,-150.0,0.00019865,2]
[359118109,1745715043986,-150.0,0.00019865,2]
[359118110,1745715043995,-1674.63771916,0.00019866,2]
[359118111,1745715044005,-1622.53755652,0.00019866,2]
[359118112,1745715044014,-150.0,0.00019872,2]
[359118113,1745715044024,-150.0,0.00019876,2]
[359118114,1745715044033,-150.0,0.00019877,2]
[359118115,1745715044043,-158.53074982,0.00019886,2]
[359118116,1745715044052,-1000.0,0.00019886,2]
[359118117,1745715044062,-500.0,0.00019887,2]
[359118118,1745715044071,-150.0,0.00019887,2]
[359118120,1745715044081,-150.0,0.00019888,2]
[359118122,1745715044091,-158.5307498,0.00019891,2]
[359118124,1745715044100,-158.5307498,0.00019895,2]
[359118126,1745715044110,-500.0,0.00019899,2]
[359118128,1745715044119,-158.68254028,0.000199,2]
[359118130,1745715044129,-158.5307498,0.000199,2]
[359118132,1745715044138,-4385.74016815,0.000199,2]
[359118134,1745715044148,-1674.63771916,0.000199,2]
[359118136,1745715044157,-160.95171233,0.000199,2]
[359118137,1745715044168,-1622.53755652,0.000199,2]
[359118139,1745715044178,-10749.92846637,0.000199,2]
[359118141,1745715044187,-177104.41806731,0.000199,2]
[359118178,1745715044543,-1590.42,0.000199,2]
[359118181,1745715044555,-1631.0,0.000199,2]
[359118183,1745715044566,-354.60144798,0.000199,2]
[359118185,1745715044581,-1070.70831661,0.000199,2]
[359118187,1745715044593,-1142.92494503,0.000199,2]
[359118189,1745715044604,-935.97822,0.000199,2]
[359118193,1745715044624,-575.44595638,0.000199,2]
[359118195,1745715044636,-10931.14519315,0.000199,2]
[359118197,1745715044648,-325.50263697,0.000199,2]
[359118226,1745715044921,-2549.05889236,0.000199,2]
[359118228,1745715044933,-1000.0,0.000199,2]
[359118440,1745715046991,-11216.94874507,0.000199,2]
[359118460,1745715047312,-400.0,0.00019694,2]
[359118461,1745715047322,-9042.90879186,0.000199,2]
[359118497,1745715047827,-1159.04288287,0.000199,2]
[359118991,1745715325376,403.0,0.0003698,60]
[359118992,1745715408742,300.60499329,0.000195,5]
[359118998,1745715443508,-166.67,0.00019305,2]
[359118999,1745715502364,1000.0,0.00018738,2]
[359119000,1745715620857,334.2,0.00019301,2]
[359119004,1745715830577,418.46,0.00016813,2]
[359119005,1745715830653,418.46,0.00019076,2]
[359119007,1745716012726,150.0,0.00018731,7]
[359119008,1745716099412,-174.13079569,0.00019469,2]
[359119009,1745716102571,-262.6432771,0.00019469,2]